bitfinex-derivatives/quotes_SOLF0:USTF0_20250319
["timestamp","ask_amount","ask_price","bid_price","bid_amount"]
[1742384762178,27.1896393,128.94,128.89,15.966]
[1742384762788,27.1896393,128.94,128.9,7.7585]
[1742384762985,0.05780833,128.93,128.9,0.05923026]
[1742384763195,7.81450833,128.93,128.9,0.05923026]
[1742384763378,0.05780833,128.93,128.9,0.05923026]
[1742384763982,4.26380833,128.93,128.9,0.05923026]
[1742384764291,70.30003732,128.92,128.9,0.05923026]
[1742384764683,7.7579,128.91,128.9,0.05923026]
[1742384764988,70.30003732,128.92,128.85,39.1]
[1742384765692,31.20003732,128.9,128.82,8.4668]
[1742384765889,31.20003732,128.9,128.82,39.12]
[1742384766088,43.2984,128.89,128.82,39.12]
[1742384766293,0.05315336,128.87,128.85,0.0582977]
[1742384767294,0.05315336,128.87,128.86,7.7609]
[1742384768288,0.05315336,128.87,128.85,7.8195977]
[1742384768492,0.05315336,128.87,128.85,0.0582977]
[1742384768692,0.05315336,128.87,128.86,7.7609]
[1742384768897,0.05315336,128.87,128.85,0.0582977]
[1742384769884,0.05315336,128.87,128.86,7.7609]
[1742384772096,0.05315336,128.87,128.85,7.8195977]
[1742384772294,39.14,128.86,128.85,0.0582977]
[1742384772894,0.05315336,128.87,128.85,0.0582977]
[1742384773995,31.25319068,128.87,128.85,0.0582977]
[1742384774501,7.7609,128.86,128.85,0.0582977]
[1742384774698,11.6896,128.86,128.85,0.0582977]
[1742384776201,3.9287,128.86,128.75,39.14]
[1742384776401,31.20003732,128.84,128.75,39.14]
[1742384776698,7.7643,128.81,128.76,7.7666]
[1742384777289,31.20003732,128.84,128.77,0.0521939]
[1742384777290,7.8154592,128.8,128.77,0.0521939]
[1742384777495,0.0505592,128.8,128.77,0.0521939]
[1742384778098,7.7655,128.79,128.77,0.0521939]
[1742384778596,7.8153592,128.8,128.77,0.0521939]
[1742384779599,7.7653,128.79,128.77,0.0521939]
[1742384779793,0.0505592,128.8,128.77,0.0521939]
[1742384780996,7.7658,128.78,128.77,0.0521939]
[1742384782006,46.9255,128.79,128.77,0.0521939]
[1742384782206,0.0505592,128.8,128.77,0.0521939]
[1742384783906,31.25059652,128.8,128.77,0.0521939]
[1742384784415,7.7658,128.78,128.77,0.0521939]
[1742384784613,46.9258,128.78,128.77,0.0521939]
[1742384786410,78.12583732,128.78,128.77,0.0521939]
[1742384786714,39.16,128.78,128.77,0.0521939]
[1742384787017,0.0505592,128.8,128.77,0.0521939]
[1742384787913,7.8153592,128.8,128.77,7.8181939]
[1742384788113,0.0505592,128.8,128.77,7.8181939]
[1742384788314,0.0505592,128.8,128.77,0.0521939]
[1742384788515,0.0505592,128.8,128.78,7.7653]
[1742384788822,0.0505592,128.8,128.77,0.0521939]
[1742384789221,7.8155592,128.8,128.77,0.0521939]
[1742384790222,0.0505592,128.8,128.77,0.0521939]
[1742384790422,0.0505592,128.8,128.77,7.8184939]
[1742384790622,7.8155592,128.8,128.77,0.0521939]
[1742384790823,7.8155592,128.8,128.77,7.8184939]
[1742384791218,0.0505592,128.8,128.77,39.2121939]
[1742384791620,0.0505592,128.8,128.79,7.7651]
[1742384791818,267.64,128.82,128.78,4.2896]
[1742384792022,267.64,128.82,128.78,8.4402]
[1742384792723,267.64,128.82,128.77,39.2121939]
[1742384793025,0.05658727,128.81,128.77,0.0521939]
[1742384793426,7.7658,128.78,128.77,0.0521939]
[1742384796129,7.7654,128.79,128.77,0.0521939]
[1742384796329,70.4257052,128.8,128.77,0.0521939]
[1742384796831,39.0315052,128.78,128.77,0.0521939]
[1742384797235,7.7685,128.74,128.71,7.7697]
[1742384797426,7.7685,128.74,128.68,8.0086]
[1742384797625,7.7685,128.74,128.69,39.16]
[1742384797829,7.7689,128.73,128.69,39.16]
[1742384798123,299.1257052,128.76,128.68,47.1686]
[1742384798328,7.7705,128.71,128.7,0.05255847]
[1742384798932,0.05136251,128.72,128.7,0.05255847]
[1742384798933,7.82096251,128.72,128.7,0.05255847]
[1742384799133,0.05136251,128.72,128.7,0.05255847]
[1742384800130,0.05136251,128.72,128.7,7.82305847]
[1742384800329,0.05136251,128.72,128.7,0.05255847]
[1742384800533,0.05136251,128.72,128.7,7.82265847]
[1742384801136,0.05136251,128.72,128.71,7.77]
[1742384803035,299.1257052,128.76,128.74,7.7681]
[1742384803036,267.86,128.76,128.74,7.7681]
[1742384803637,267.86,128.76,128.68,70.4257052]
[1742384804135,267.86,128.76,128.73,7.7683]
[1742384804335,0.05854769,128.73,128.71,39.21310013]
[1742384804531,267.86,128.76,128.71,39.21310013]
[1742384804734,267.86,128.76,128.75,7.7676]
[1742384805135,267.86,128.76,128.72,3.9232]
[1742384805431,267.86,128.76,128.73,7.7682]
[1742384805840,275.68513792,128.76,128.73,7.81751167]
[1742384806338,267.91783792,128.76,128.74,7.7682]
[1742384806636,267.91783792,128.76,128.73,0.04931167]
[1742384807028,267.91783792,128.76,128.75,7.7676]
[1742384807835,0.05783792,128.76,128.75,7.7676]
[1742384808442,7.7642,128.81,128.78,7.7656]
[1742384808641,346.4356052,128.82,128.74,39.16]
[1742384808830,7.7648,128.8,128.74,39.16]
[1742384809034,346.4356052,128.82,128.74,39.16]
[1742384809436,7.7646,128.8,128.74,39.16]
[1742384809637,0.04959591,128.79,128.77,0.05849577]
[1742384811037,7.7658,128.78,128.77,0.05849577]
[1742384811633,7.7658,128.78,128.71,39.14]
[1742384811634,7.7684,128.74,128.71,39.14]
[1742384812040,338.3257052,128.76,128.69,7.7708]
[1742384812345,7.7689,128.73,128.69,7.7708]
[1742384812743,7.7684,128.74,128.7,7.7705]
[1742384812947,0.05553604,128.72,128.7,7.82211776]
[1742384814244,0.05553604,128.72,128.71,7.77]
[1742384815951,0.05553604,128.72,128.7,7.82191776]
[1742384816550,0.05553604,128.72,128.7,0.05161776]
[1742384818353,7.77,128.71,128.7,0.05161776]
[1742384820448,39.09104124,128.72,128.7,0.05161776]
[1742384820754,31.32124124,128.72,128.7,0.05161776]
[1742384821149,7.77,128.71,128.7,0.05161776]
[1742384822547,7.82513604,128.72,128.7,0.05161776]
[1742384822752,0.05553604,128.72,128.7,0.05161776]
[1742384823053,7.82523604,128.72,128.7,0.05161776]
[1742384823453,0.05553604,128.72,128.7,0.05161776]
[1742384824148,7.82523604,128.72,128.7,0.05161776]
[1742384824448,0.05553604,128.72,128.7,0.05161776]
[1742384825353,7.82533604,128.72,128.7,0.05161776]
[1742384827555,0.05553604,128.72,128.7,0.05161776]
[1742384827957,0.05553604,128.72,128.71,7.77]
[1742384828253,0.05553604,128.72,128.7,0.05161776]
[1742384828655,7.77,128.71,128.7,0.05161776]
[1742384829255,27.34153064,128.71,128.7,0.05161776]
[1742384832052,7.7731,128.66,128.6,80.12918264]
[1742384832254,19.57153064,128.68,128.61,4.0052]
[1742384832650,268.02,128.69,128.61,4.0052]
[1742384832854,268.04,128.74,128.66,19.57153064]
[1742384833058,23.77063064,128.75,128.67,47.166]
[1742384833257,0.05288469,128.71,128.69,0.05639961]
[1742384833459,0.05288469,128.71,128.7,39.12]
[1742384833861,287.61153064,128.76,128.7,39.12]
[1742384834257,268.04,128.76,128.7,39.12]
[1742384834458,268.04,128.76,128.73,7.7687]
[1742384834858,268.04,128.76,128.7,58.69153064]
[1742384835063,268.04,128.76,128.7,48.90576532]
[1742384835259,0.05804762,128.74,128.72,0.05681398]
[1742384835561,0.05804762,128.74,128.73,7.7688]
[1742384835764,0.05804762,128.74,128.72,0.05681398]
[1742384835963,0.05804762,128.74,128.73,39.12]
[1742384836161,0.05804762,128.74,128.73,46.8888]
[1742384837056,0.05804762,128.74,128.72,0.05681398]
[1742384837959,0.05804762,128.74,128.73,7.7688]
[1742384839065,303.29470656,128.81,128.73,7.7688]
[1742384839066,268.0,128.81,128.73,7.76]
[1742384839255,268.0,128.81,128.74,8.0689]
[1742384839461,268.0,128.81,128.77,7.7659]
[1742384839758,268.0,128.81,128.75,39.1]
[1742384841564,0.05647794,128.79,128.78,7.7656]
[1742384843667,0.05647794,128.79,128.77,46.92070495]
[1742384843863,0.05647794,128.79,128.77,0.05460495]
[1742384844065,7.82197794,128.79,128.77,0.05460495]
[1742384844564,0.05647794,128.79,128.77,0.05460495]
[1742384845074,0.05647794,128.79,128.78,7.7658]
[1742384845370,78.52600656,128.85,128.8,7.764]
[1742384845569,78.52600656,128.85,128.78,4.3219]
[1742384845869,78.52600656,128.85,128.78,12.0873]
[1742384846267,7.7637,128.82,128.78,12.0873]
[1742384846570,0.0592656,128.81,128.79,0.05974621]
[1742384846964,7.7645,128.8,128.79,0.05974621]
[1742384848469,7.8233656,128.81,128.79,0.05974621]
[1742384850070,0.0592656,128.81,128.79,0.05974621]
[1742384850673,7.7645,128.8,128.79,0.05974621]
[1742384851870,267.88,128.8,128.74,7.7679]
[1742384852170,70.33980656,128.79,128.72,4.3219]
[1742384852576,7.7661,128.78,128.74,7.7678]
[1742384852777,70.33980656,128.79,128.74,7.7678]
[1742384853177,7.7666,128.77,128.75,0.05862153]
[1742384853776,7.767,128.76,128.75,0.05862153]
[1742384853983,0.05675581,128.78,128.75,0.05862153]
[1742384854479,7.767,128.76,128.75,0.05862153]
[1742384856978,46.827,128.76,128.75,0.05862153]
[1742384857184,66.38188402,128.76,128.75,0.05862153]
[1742384857384,7.7691,128.73,128.69,4.139]
[1742384857580,58.61488402,128.76,128.69,4.139]
[1742384857785,7.7688,128.73,128.69,4.139]
[1742384858591,0.05163518,128.72,128.7,0.05934524]
[1742384859490,0.05163518,128.72,128.7,7.82954524]
[1742384860289,0.05163518,128.72,128.71,7.77]
[1742384862497,0.05163518,128.72,128.7,7.82964524]
[1742384863388,0.05163518,128.72,128.71,7.77]
[1742384864993,3.518e-05,128.72,128.71,7.77]
[1742384865201,3.518e-05,128.72,128.71,46.81]
[1742384865501,3.518e-05,128.72,128.71,55.2364]
[1742384866002,3.9266,128.79,128.71,47.4664]
[1742384866307,58.59488402,128.78,128.69,39.04]
[1742384866503,58.59488402,128.78,128.72,7.7689]
[1742384866703,58.59488402,128.78,128.69,39.04]
[1742384867006,19.55488402,128.76,128.7,7.7701]
[1742384867206,0.05457023,128.75,128.72,0.05380636]
[1742384867806,0.05457023,128.75,128.73,7.7685]
[1742384868107,0.05457023,128.75,128.72,0.05380636]
[1742384868305,0.05457023,128.75,128.72,7.82270636]
[1742384869103,7.82237023,128.75,128.72,7.82270636]
[1742384870111,0.05457023,128.75,128.72,0.05380636]
[1742384870903,7.7688,128.73,128.72,0.05380636]
[1742384871105,0.05457023,128.75,128.72,0.05380636]
[1742384871910,0.05457023,128.75,128.74,7.7682]
[1742384872109,0.05457023,128.75,128.72,0.05380636]
[1742384872303,0.05457023,128.75,128.72,58.62869038]
[1742384872503,0.05457023,128.75,128.74,7.7682]
[1742384873011,0.05457023,128.75,128.72,7.82300636]
[1742384873311,0.05457023,128.75,128.72,0.05380636]
[1742384873706,0.05457023,128.75,128.72,7.82280636]
[1742384874110,0.05457023,128.75,128.72,0.05380636]
[1742384874311,0.05457023,128.75,128.72,7.82310636]
[1742384875311,0.05457023,128.75,128.73,7.7686]
[1742384877310,311.1009,128.8,128.73,19.55488402]
[1742384877506,7.7655,128.79,128.74,39.0]
[1742384877911,272.1009,128.8,128.74,39.0]
[1742384877912,267.94,128.8,128.74,39.0]
[1742384878213,267.94,128.8,128.74,43.0196]
[1742384878610,0.05255207,128.78,128.76,0.05872939]
[1742384879512,7.81865207,128.78,128.76,0.05872939]
[1742384879716,0.05255207,128.78,128.76,0.05872939]
[1742384880009,7.81865207,128.78,128.76,0.05872939]
[1742384880615,7.7664,128.77,128.76,0.05872939]
[1742384883310,12.03135207,128.78,128.76,0.05872939]
[1742384883507,0.05255207,128.78,128.76,0.05872939]
[1742384883711,0.05255207,128.78,128.76,39.03872939]
[1742384884218,0.05255207,128.78,128.77,7.7664]
[1742384885110,0.05255207,128.78,128.76,46.80542939]
[1742384885311,0.05255207,128.78,128.76,39.03872939]
[1742384886215,0.05255207,128.78,128.77,7.7664]
[1742384886908,19.55488402,128.84,128.8,7.7642]
[1742384887516,19.55488402,128.84,128.79,7.7648]
[1742384887817,7.7637,128.82,128.76,38.98]
[1742384888118,0.05904815,128.8,128.78,0.05484051]
[1742384889022,7.7651,128.79,128.78,0.05484051]
[1742384889515,19.61393217,128.8,128.78,0.05484051]
[1742384889722,27.37873217,128.8,128.78,0.05484051]
[1742384890015,19.61393217,128.8,128.78,0.05484051]
[1742384890219,19.61393217,128.8,128.78,7.82044051]
[1742384890821,0.05904815,128.8,128.79,7.7651]
[1742384892423,0.05904815,128.8,128.78,0.05484051]
[1742384893612,0.05904815,128.8,128.78,7.82034051]
[1742384893817,0.05904815,128.8,128.78,0.05484051]
[1742384894226,7.7651,128.79,128.78,0.05484051]
[1742384894618,27.31998402,128.79,128.78,0.05484051]
[1742384894812,19.55488402,128.79,128.71,8.2405]
[1742384895013,19.55488402,128.77,128.72,38.94]
[1742384895214,19.55488402,128.77,128.68,51.45635958]
[1742384895418,19.55488402,128.77,128.69,48.71744201]
[1742384895625,291.63648402,128.79,128.7,9.77744201]
[1742384895916,0.05183873,128.76,128.73,0.05207851]
[1742384896120,0.05183873,128.76,128.73,38.99207851]
[1742384896322,0.05183873,128.76,128.74,7.7679]
[1742384897423,0.05183873,128.76,128.75,7.7676]
[1742384898329,0.05183873,128.76,128.73,38.99207851]
[1742384898830,0.05183873,128.76,128.75,7.7676]
[1742384899026,306.82,128.84,128.75,9.77744201]
[1742384899221,287.43488402,128.84,128.76,38.94]
[1742384899527,7.7643,128.81,128.76,38.94]
[1742384899720,287.43488402,128.84,128.76,38.94]
[1742384899919,7.7636,128.82,128.78,7.7655]
[1742384900124,0.05810446,128.81,128.79,0.05333305]
[1742384900524,0.05810446,128.81,128.79,7.81843305]
[1742384900925,0.05810446,128.81,128.79,0.05333305]
[1742384901231,0.05810446,128.81,128.8,7.7645]
[1742384902232,35.53648402,128.86,128.83,7.7626]
[1742384902426,35.53648402,128.86,128.79,38.94]
[1742384902828,27.77538402,128.86,128.79,38.94]
[1742384903028,66.69538402,128.86,128.79,38.94]
[1742384903431,0.05371558,128.84,128.81,7.81377869]
[1742384903734,0.05371558,128.84,128.81,0.05027869]
[1742384904728,7.81611558,128.84,128.81,0.05027869]
[1742384904928,0.05371558,128.84,128.81,0.05027869]
[1742384905131,19.6085996,128.84,128.81,0.05027869]
[1742384905431,7.7631,128.83,128.81,0.05027869]
[1742384905731,19.6085996,128.84,128.81,0.05027869]
[1742384905934,0.05371558,128.84,128.81,0.05027869]
[1742384906433,0.05371558,128.84,128.83,7.7627]
[1742384908927,0.05371558,128.84,128.82,7.763]
[1742384909123,19.6085996,128.84,128.81,0.05027869]
[1742384909332,27.3708996,128.84,128.81,0.05027869]
[1742384909531,19.6085996,128.84,128.82,7.7632]
[1742384909932,0.05371558,128.84,128.81,0.05027869]
[1742384910132,0.05371558,128.84,128.83,7.7627]
[1742384912934,7.7582,128.91,128.82,58.45488402]
[1742384913136,7.7582,128.91,128.84,19.55488402]
[1742384913338,7.7598,128.88,128.85,38.88]
[1742384913634,19.55488402,128.9,128.85,38.88]
[1742384913939,7.7595,128.89,128.85,46.641]
[1742384914139,7.8153696,128.89,128.86,0.05229911]
[1742384914732,0.0558696,128.89,128.86,0.05229911]
[1742384915337,0.0558696,128.89,128.88,7.7597]
[1742384915934,307.38138402,128.94,128.91,7.7578]
[1742384916238,7.7571,128.93,128.88,38.88]
[1742384916440,7.7571,128.93,128.89,7.7588]
[1742384916741,19.55488402,128.92,128.86,3.9112]
[1742384916942,19.55488402,128.92,128.86,38.86]
[1742384917137,0.02788477,128.9,128.88,0.05086943]
[1742384917337,7.78668477,128.9,128.88,0.05086943]
[1742384918240,0.02788477,128.9,128.88,0.05086943]
[1742384918436,0.02788477,128.9,128.89,38.86]
[1742384919644,0.02788477,128.9,128.88,0.05086943]
[1742384920044,7.78638477,128.9,128.88,0.05086943]
[1742384920242,0.02788477,128.9,128.88,0.05086943]
[1742384920838,7.7591,128.89,128.88,0.05086943]
[1742384921549,58.44276879,128.9,128.83,38.86]
[1742384921748,19.55488402,128.87,128.83,38.86]
[1742384922045,7.7616,128.85,128.83,38.86]
[1742384922249,19.55488402,128.87,128.83,38.86]
[1742384922440,19.55488402,128.87,128.81,38.84]
[1742384922640,7.7621,128.84,128.83,0.05786847]
[1742384923650,0.0560211,128.86,128.83,0.05786847]
[1742384924041,0.0560211,128.86,128.84,7.7621]
[1742384924443,0.0560211,128.86,128.84,38.84]
[1742384924746,0.0560211,128.86,128.85,7.7615]
[1742384925145,0.0560211,128.86,128.83,7.82036847]
[1742384925348,0.0560211,128.86,128.83,0.05786847]
[1742384926245,7.7621,128.84,128.83,0.05786847]
[1742384926840,7.7618,128.85,128.83,0.05786847]
[1742384927047,0.0560211,128.86,128.83,0.05786847]
[1742384927348,0.0560211,128.86,128.84,7.7618]
[1742384928648,0.0560211,128.86,128.85,7.7615]
[1742384929946,0.0560211,128.86,128.85,46.5815]
[1742384932152,0.0560211,128.86,128.85,7.7615]
[1742384933055,0.0560211,128.86,128.83,38.87786847]
[1742384933554,7.8172211,128.86,128.83,46.64016847]
[1742384934257,0.0560211,128.86,128.83,46.64016847]
[1742384934452,0.0560211,128.86,128.83,0.05786847]
[1742384934659,19.61090512,128.86,128.83,0.05786847]
[1742384935056,7.7621,128.84,128.83,0.05786847]
[1742384935857,7.764,128.81,128.78,38.82]
[1742384936157,19.55488402,128.84,128.79,7.7648]
[1742384936355,58.35488402,128.84,128.76,32.10548402]
[1742384936656,7.7644,128.81,128.77,38.8]
[1742384937155,58.35488402,128.84,128.77,38.8]
[1742384937156,0.04970117,128.8,128.78,7.8198169]
[1742384937357,0.04970117,128.8,128.78,0.0543169]
[1742384937748,0.04970117,128.8,128.79,7.7651]
[1742384937955,0.04970117,128.8,128.78,0.0543169]
[1742384938856,19.60458519,128.8,128.73,4.0445]
[1742384939056,19.60458519,128.8,128.73,7.7683]
[1742384939262,19.60458519,128.8,128.72,7.9486]
[1742384939463,19.55488402,128.8,128.72,7.9486]
[1742384939662,7.7661,128.78,128.72,7.9486]
[1742384939956,7.7661,128.78,128.75,0.05782016]
[1742384939957,0.05763112,128.77,128.75,0.05782016]
[1742384940362,7.82403112,128.77,128.75,0.05782016]
[1742384940562,0.05763112,128.77,128.75,0.05782016]
[1742384941168,7.767,128.76,128.75,0.05782016]
[1742384941466,27.32188402,128.76,128.75,0.05782016]
[1742384941665,19.55488402,128.72,128.66,3.9527]
[1742384942260,19.55488402,128.72,128.68,7.7714]
[1742384942664,0.0510556,128.71,128.69,0.05569997]
[1742384943558,0.0510556,128.71,128.69,7.82669997]
[1742384943758,0.0510556,128.71,128.69,0.05569997]
[1742384944659,19.55488402,128.7,128.69,0.05569997]
[1742384944862,19.55488402,128.7,128.64,4.0383]
[1742384945063,7.7722,128.68,128.64,11.8124]
[1742384946062,0.05056769,128.67,128.65,0.05697198]
[1742384946265,0.05056769,128.67,128.65,38.85697198]
[1742384946455,0.05056769,128.67,128.66,7.773]
[1742384948162,3.9668,128.73,128.7,7.7704]
[1742384949161,4.01627407,128.73,128.7,7.82879764]
[1742384949562,0.04947407,128.73,128.71,7.7698]
[1742384950069,0.04947407,128.73,128.7,7.82869764]
[1742384950971,0.04947407,128.73,128.7,0.05839764]
[1742384951173,19.55488402,128.72,128.7,0.05839764]
[1742384951368,7.77,128.71,128.7,0.05839764]
[1742384951563,58.35488402,128.72,128.7,0.05839764]
[1742384952071,66.12468402,128.72,128.7,0.05839764]
[1742384952274,0.04947407,128.73,128.7,0.05839764]
[1742384952973,7.81857407,128.73,128.7,7.82869764]
[1742384953170,0.04947407,128.73,128.7,0.05839764]
[1742384953572,19.55488402,128.72,128.7,0.05839764]
[1742384954075,46.57,128.71,128.7,0.05839764]
[1742384954275,38.8,128.71,128.66,7.7727]
[1742384954471,38.8,128.71,128.64,42.8383]
[1742384955076,7.7713,128.69,128.64,42.8383]
[1742384955270,0.05149699,128.68,128.65,0.05121004]
[1742384956275,7.82379699,128.68,128.65,7.82451004]
[1742384956577,0.05149699,128.68,128.65,0.05121004]
[1742384956777,19.60638101,128.68,128.65,0.05121004]
[1742384957175,58.40638101,128.68,128.65,0.05121004]
[1742384957375,7.773,128.66,128.65,0.05121004]
[1742384957674,58.40638101,128.68,128.65,0.05121004]
[1742384957973,0.05149699,128.68,128.65,0.05121004]
[1742384959378,0.05149699,128.68,128.66,7.773]
[1742384960178,19.60638101,128.68,128.65,0.05121004]
[1742384960573,7.773,128.66,128.65,0.05121004]
[1742384961575,19.60638101,128.68,128.65,0.05121004]
[1742384961879,0.05149699,128.68,128.65,0.05121004]
[1742384962073,7.82379699,128.68,128.65,0.05121004]
[1742384962275,0.05149699,128.68,128.65,0.05121004]
[1742384962682,7.7725,128.67,128.65,0.05121004]
[1742384965881,0.05149699,128.68,128.65,0.05121004]
[1742384966476,0.05149699,128.68,128.67,7.7724]
[1742384968078,7.769,128.73,128.7,7.7704]
[1742384968281,326.41488402,128.74,128.66,19.55488402]
[1742384968481,326.41488402,128.74,128.67,38.78]
[1742384968783,7.769,128.73,128.7,7.7701]
[1742384968985,326.41488402,128.74,128.7,7.7701]
[1742384969185,7.82559554,128.73,128.7,7.823119]
[1742384970378,7.7695,128.72,128.7,7.823119]
[1742384970583,0.05669554,128.73,128.7,7.823119]
[1742384970785,0.05669554,128.73,128.71,7.7699]
[1742384971084,0.05669554,128.73,128.7,0.053019]
[1742384971283,0.05669554,128.73,128.72,7.7694]
[1742384971482,0.05669554,128.73,128.7,0.053019]
[1742384971981,7.77,128.71,128.7,0.053019]
[1742384972778,7.7725,128.67,128.62,27.94338402]
[1742384972979,19.55488402,128.68,128.62,47.1485]
[1742384973185,19.55488402,128.68,128.6,38.76]
[1742384973486,19.55488402,128.64,128.59,4.2497]
[1742384973681,19.55488402,128.66,128.59,4.2497]
[1742384973986,0.05853052,128.64,128.62,7.7751]
[1742384974385,7.83283052,128.64,128.62,7.7751]
[1742384974579,0.05853052,128.64,128.62,7.7751]
[1742384974889,0.05853052,128.64,128.63,7.7748]
[1742384977890,0.05853052,128.64,128.61,0.05299837]
[1742384978284,7.83303052,128.64,128.61,7.82859837]
[1742384978695,0.05853052,128.64,128.61,0.05299837]
[1742384978888,0.05853052,128.64,128.62,7.7751]
[1742384979689,0.05853052,128.64,128.63,7.7748]
[1742384982283,0.05853052,128.64,128.62,7.7751]
[1742384982684,0.05853052,128.64,128.61,0.05299837]
[1742384982886,7.7748,128.63,128.61,0.05299837]
[1742384984185,7.7754,128.62,128.61,0.05299837]
[1742384986796,27.33028402,128.62,128.61,0.05299837]
[1742384987399,27.33028402,128.62,128.56,38.72]
[1742384987895,46.4951,128.63,128.56,38.72]
[1742384988196,38.72,128.63,128.56,38.72]
[1742384988392,27.33198402,128.6,128.57,7.7782]
[1742384988593,58.27488402,128.6,128.58,0.05373826]
[1742384988797,58.27488402,128.6,128.52,108.37680159]
[1742384988996,58.33327691,128.6,128.58,0.05418823]
[1742384989197,58.27488402,128.6,128.52,41.67891757]
[1742384989497,27.33298402,128.58,128.55,7.7794]
[1742384989688,19.55488402,128.58,128.5,69.68130159]
[1742384989893,19.55488402,128.58,128.51,38.72]
[1742384990095,7.7785,128.57,128.54,7.7797]
[1742384990498,0.05262396,128.57,128.54,0.05900131]
[1742384990694,7.7796,128.55,128.54,0.05900131]
[1742384991597,0.05262396,128.57,128.54,0.05900131]
[1742384993189,7.7796,128.56,128.54,0.05900131]
[1742384993392,0.05262396,128.57,128.54,0.05900131]
[1742384993692,7.7794,128.56,128.54,0.05900131]
[1742384994093,0.05262396,128.57,128.54,0.05900131]
[1742384994291,7.7796,128.55,128.54,0.05900131]
[1742384995503,7.7794,128.56,128.54,0.05900131]
[1742384995696,0.05262396,128.57,128.54,0.05900131]
[1742384995902,0.05262396,128.57,128.55,7.7795]
[1742384996105,0.05262396,128.57,128.54,0.05900131]
[1742384996403,0.05262396,128.57,128.54,7.83890131]
[1742384996697,7.83152396,128.57,128.54,7.83890131]
[1742384997603,7.83152396,128.57,128.55,7.7796]
[1742384997800,7.83152396,128.57,128.54,0.05900131]
[1742384998499,0.05262396,128.57,128.54,0.05900131]
[1742384999205,0.05262396,128.57,128.56,7.779]
[1742384999802,0.05262396,128.57,128.55,7.7793]
[1742384999996,0.05262396,128.57,128.54,0.05900131]
[1742385000398,7.83142396,128.57,128.54,0.05900131]
[1742385000603,0.05262396,128.57,128.54,0.05900131]
[1742385001102,7.7796,128.55,128.54,0.05900131]
[1742385002809,7.7796,128.55,128.54,0.0074791]
[1742385003405,7.7813,128.53,128.48,46.4636]
[1742385003599,7.7813,128.53,128.47,8.2268]
[1742385003806,66.01538402,128.54,128.49,7.7829]
[1742385004004,66.01538402,128.54,128.47,8.2268]
[1742385004304,58.23488402,128.54,128.47,27.78168402]
[1742385004509,0.05006105,128.52,128.49,0.05727085]
[1742385004706,0.05006105,128.52,128.49,58.29215487]
[1742385004906,0.05006105,128.52,128.51,7.7821]
[1742385006611,6.105e-05,128.52,128.51,7.7821]
[1742385011908,19.55488402,128.6,128.51,7.78]
[1742385012108,268.36,128.61,128.56,19.55488402]
[1742385012413,268.36,128.61,128.56,58.21488402]
[1742385012616,19.55488402,128.6,128.53,38.66]
[1742385012807,7.7773,128.59,128.53,38.66]
[1742385013204,0.05931686,128.57,128.56,7.7786]
[1742385016013,307.02,128.61,128.59,7.7768]
[1742385016014,268.36,128.61,128.59,7.7768]
[1742385016215,268.36,128.61,128.56,58.21488402]
[1742385016610,268.36,128.61,128.6,7.7766]
[1742385016806,58.19488402,128.64,128.56,58.21488402]
[1742385017010,7.774,128.65,128.62,7.775]
[1742385017317,38.64,128.65,128.62,7.775]
[1742385017504,38.69262672,128.65,128.57,8.2229]
[1742385017706,7.7744,128.64,128.62,0.05541081]
[1742385017918,38.64,128.65,128.62,0.05541081]
[1742385018216,0.05288106,128.64,128.62,0.05541081]
[1742385018414,7.7748,128.63,128.62,0.05541081]
[1742385018810,19.60776508,128.64,128.54,19.55488402]
[1742385019013,38.64,128.65,128.54,19.55488402]
[1742385019014,19.55488402,128.62,128.55,38.64]
[1742385019320,19.55488402,128.64,128.56,19.55488402]
[1742385019615,19.55488402,128.64,128.56,27.80638402]
[1742385020115,7.83126971,128.61,128.59,0.05476705]
[1742385020312,0.05516971,128.61,128.59,0.05476705]
[1742385020713,0.05516971,128.61,128.59,7.83166705]
[1742385020914,0.05516971,128.61,128.59,0.05476705]
[1742385021417,7.83146971,128.61,128.59,0.05476705]
[1742385021616,0.05516971,128.61,128.59,0.05476705]
[1742385022018,7.7766,128.6,128.59,0.05476705]
[1742385023014,0.05516971,128.61,128.59,0.05476705]
[1742385023220,7.83136971,128.61,128.59,0.05476705]
[1742385023423,0.05516971,128.61,128.59,0.05476705]
[1742385023623,0.05516971,128.61,128.6,7.7766]